[Event "Late-Titled-Tuesday-Blitz-August-29-2023"]
[Site "Chess.com"]
[Date "2023.08.29"]
[Round "3"]
[White "JerMorGurgeh"]
[Black "trriinu"]
[Result "1-0"]
[WhiteElo "2417"]
[BlackElo "2211"]
[TimeControl "180+1"]
[EndTime "14:28:23 PDT"]
[Termination "JerMorGurgeh won on time"]

1. d4 {[%clk 0:01:58.7]} 1... g6 {[%clk 0:02:53.6]} 2. Nf3 {[%clk 0:01:57]} 2...
Bg7 {[%clk 0:02:53.7]} 3. c4 {[%clk 0:01:56.8]} 3... c6 {[%clk 0:02:52.9]} 4. g3
{[%clk 0:01:56.6]} 4... d5 {[%clk 0:02:49.8]} 5. cxd5 {[%clk 0:01:56]} 5... cxd5
{[%clk 0:02:50.7]} 6. Bg2 {[%clk 0:01:55.7]} 6... Nc6 {[%clk 0:02:49.3]} 7. Nc3
{[%clk 0:01:56.1]} 7... Bg4 {[%clk 0:02:48.3]} 8. h3 {[%clk 0:01:44.9]} 8...
Bxf3 {[%clk 0:02:47.8]} 9. Bxf3 {[%clk 0:01:44.6]} 9... e6 {[%clk 0:02:47]} 10.
e3 {[%clk 0:01:43.2]} 10... Nge7 {[%clk 0:02:27.2]} 11. O-O {[%clk 0:01:40.4]}
11... O-O {[%clk 0:02:26.2]} 12. Bg2 {[%clk 0:01:40.6]} 12... Nf5 {[%clk
0:02:24.1]} 13. b3 {[%clk 0:01:39.8]} 13... Rc8 {[%clk 0:02:22.5]} 14. Bb2
{[%clk 0:01:29.7]} 14... Qg5 {[%clk 0:02:10.8]} 15. Qe2 {[%clk 0:01:27]} 15...
h5 {[%clk 0:01:51.6]} 16. Kh2 {[%clk 0:01:25.7]} 16... Rfd8 {[%clk 0:01:43]} 17.
Rac1 {[%clk 0:01:24.1]} 17... Bf8 {[%clk 0:01:42.1]} 18. Na4 {[%clk 0:01:15.1]}
18... Bd6 {[%clk 0:01:38.1]} 19. Kg1 {[%clk 0:00:57.4]} 19... Nce7 {[%clk
0:00:42.9]} 20. Nc5 {[%clk 0:00:54.5]} 20... e5 {[%clk 0:00:27]} 21. Nxb7 {[%clk
0:00:48.6]} 21... exd4 {[%clk 0:00:15.6]} 22. Nxd6 {[%clk 0:00:45]} 22... Nxd6
{[%clk 0:00:14.1]} 23. Bxd4 {[%clk 0:00:41.6]} 23... Nef5 {[%clk 0:00:12.1]} 24.
Be5 {[%clk 0:00:39.1]} 24... Ne4 {[%clk 0:00:11.2]} 25. Bf4 {[%clk 0:00:35.6]}
25... Qf6 {[%clk 0:00:10.2]} 26. h4 {[%clk 0:00:25.6]} 26... Nxh4 {[%clk
0:00:05.6]} 27. gxh4 {[%clk 0:00:22.5]} 27... Qxh4 {[%clk 0:00:06.5]} 28. Rxc8
{[%clk 0:00:19.9]} 28... Rxc8 {[%clk 0:00:06]} 29. Bxe4 {[%clk 0:00:18.4]} 29...
dxe4 {[%clk 0:00:06.9]} 30. Bg3 {[%clk 0:00:18.4]} 30... Qg5 {[%clk 0:00:06.2]}
31. Kh2 {[%clk 0:00:16.3]} 31... h4 {[%clk 0:00:05.5]} 32. Bf4 {[%clk
0:00:16.3]} 32... Qf5 {[%clk 0:00:05.5]} 33. Rg1 {[%clk 0:00:15.8]} 33... Kh7
{[%clk 0:00:04.1]} 34. Qg4 {[%clk 0:00:15.3]} 34... Qf6 {[%clk 0:00:03.5]} 35.
Qg5 {[%clk 0:00:13.7]} 35... Qxg5 {[%clk 0:00:03.1]} 36. Bxg5 {[%clk 0:00:11.9]}
36... Rc2 {[%clk 0:00:04]} 37. Bxh4 {[%clk 0:00:09.4]} 37... Rxa2 {[%clk
0:00:04.6]} 38. Rb1 {[%clk 0:00:08.3]} 38... Kg7 {[%clk 0:00:03.7]} 39. Kg2
{[%clk 0:00:08.2]} 39... f5 {[%clk 0:00:04]} 40. Bg3 {[%clk 0:00:08.8]} 40... g5
{[%clk 0:00:04]} 41. Be5+ {[%clk 0:00:09]} 41... Kf7 {[%clk 0:00:04.5]} 42. Bd4
{[%clk 0:00:09.5]} 42... Ra3 {[%clk 0:00:03.7]} 43. b4 {[%clk 0:00:08.7]} 43...
Ke6 {[%clk 0:00:03.5]} 44. b5 {[%clk 0:00:08.6]} 44... Kd5 {[%clk 0:00:03.1]}
45. Rc1 {[%clk 0:00:08]} 45... Ra2 {[%clk 0:00:02.1]} 46. Rc5+ {[%clk
0:00:07.8]} 46... Ke6 {[%clk 0:00:02]} 47. Re5+ {[%clk 0:00:08.4]} 47... Kd6
{[%clk 0:00:01.3]} 48. Rxf5 {[%clk 0:00:08.5]} 1-0

[Event "Late-Titled-Tuesday-Blitz-August-29-2023"]
[Site "Chess.com"]
[Date "2023.08.29"]
[Round "3"]
[White "sergiochess83"]
[Black "maciek_92"]
[Result "0-1"]
[WhiteElo "2943"]
[BlackElo "2740"]
[TimeControl "180+1"]
[EndTime "14:28:24 PDT"]
[Termination "maciek_92 won on time"]

1. d4 {[%clk 0:02:33.1]} 1... Nf6 {[%clk 0:02:59.9]} 2. c4 {[%clk 0:02:29.7]}
2... d6 {[%clk 0:03:00.2]} 3. Nc3 {[%clk 0:02:28.8]} 3... Nbd7 {[%clk
0:03:00.9]} 4. e4 {[%clk 0:02:28.5]} 4... e5 {[%clk 0:03:01.7]} 5. Nf3 {[%clk
0:02:27.5]} 5... g6 {[%clk 0:03:01.1]} 6. Be2 {[%clk 0:02:27.6]} 6... Bg7 {[%clk
0:03:01.3]} 7. O-O {[%clk 0:02:26.2]} 7... O-O {[%clk 0:03:01.5]} 8. Re1 {[%clk
0:02:25.9]} 8... Re8 {[%clk 0:02:58.8]} 9. Bf1 {[%clk 0:02:26.1]} 9... exd4
{[%clk 0:02:54.7]} 10. Nxd4 {[%clk 0:02:26]} 10... Nc5 {[%clk 0:02:55.4]} 11. f3
{[%clk 0:02:25.5]} 11... a5 {[%clk 0:02:56.1]} 12. Ndb5 {[%clk 0:02:18.7]} 12...
Bf8 {[%clk 0:02:52.5]} 13. Bf4 {[%clk 0:02:05.3]} 13... Nh5 {[%clk 0:02:48.5]}
14. Be3 {[%clk 0:02:05.4]} 14... Ne6 {[%clk 0:02:42.8]} 15. Qd2 {[%clk
0:02:03.1]} 15... c6 {[%clk 0:02:41.6]} 16. Nd4 {[%clk 0:02:02.6]} 16... a4
{[%clk 0:02:29.9]} 17. Rad1 {[%clk 0:02:01.6]} 17... Qa5 {[%clk 0:02:27.7]} 18.
Nce2 {[%clk 0:01:39.6]} 18... Qc7 {[%clk 0:02:08.2]} 19. Ng3 {[%clk 0:01:35.8]}
19... Nhg7 {[%clk 0:02:06.9]} 20. f4 {[%clk 0:01:24.4]} 20... Nc5 {[%clk
0:02:00.4]} 21. Bf2 {[%clk 0:01:21.8]} 21... h5 {[%clk 0:02:00.1]} 22. Bd3
{[%clk 0:01:19.8]} 22... h4 {[%clk 0:01:59.1]} 23. Nf1 {[%clk 0:01:19.7]} 23...
Bg4 {[%clk 0:01:54.6]} 24. Rc1 {[%clk 0:01:15.8]} 24... h3 {[%clk 0:01:54.7]}
25. g3 {[%clk 0:01:12.3]} 25... Rad8 {[%clk 0:01:17.8]} 26. Bb1 {[%clk 0:01:12]}
26... Nh5 {[%clk 0:01:12.7]} 27. b4 {[%clk 0:01:11.4]} 27... axb3 {[%clk
0:01:12.2]} 28. axb3 {[%clk 0:01:11.7]} 28... Nf6 {[%clk 0:01:10.2]} 29. f5
{[%clk 0:01:00.2]} 29... Ncxe4 {[%clk 0:01:07.1]} 30. Qf4 {[%clk 0:00:53.2]}
30... g5 {[%clk 0:00:58.4]} 31. Qe3 {[%clk 0:00:47]} 31... Bh6 {[%clk
0:00:56.7]} 32. Bxe4 {[%clk 0:00:41.9]} 32... Rxe4 {[%clk 0:00:52.2]} 33. Qd3
{[%clk 0:00:42.8]} 33... Rde8 {[%clk 0:00:48.1]} 34. Rxe4 {[%clk 0:00:35.2]}
34... Rxe4 {[%clk 0:00:47.6]} 35. Nd2 {[%clk 0:00:34.8]} 35... Re8 {[%clk
0:00:43.1]} 36. Be3 {[%clk 0:00:32.9]} 36... Qe7 {[%clk 0:00:37]} 37. Re1 {[%clk
0:00:32.5]} 37... d5 {[%clk 0:00:36]} 38. Nc2 {[%clk 0:00:31.1]} 38... Qd7
{[%clk 0:00:31.3]} 39. Rf1 {[%clk 0:00:15.8]} 39... dxc4 {[%clk 0:00:19.5]} 40.
Qxd7 {[%clk 0:00:15.7]} 40... Nxd7 {[%clk 0:00:20.4]} 41. Nxc4 {[%clk
0:00:16.3]} 41... Be2 {[%clk 0:00:18.5]} 42. Ra1 {[%clk 0:00:10.6]} 42... Bxc4
{[%clk 0:00:18.6]} 43. bxc4 {[%clk 0:00:10.7]} 43... Ne5 {[%clk 0:00:19]} 44.
Ra7 {[%clk 0:00:08.2]} 44... Ng4 {[%clk 0:00:17.5]} 45. Bd4 {[%clk 0:00:03.9]}
45... Bf8 {[%clk 0:00:11.8]} 46. Rxb7 {[%clk 0:00:03.6]} 46... c5 {[%clk
0:00:12.4]} 47. Bc3 {[%clk 0:00:02.1]} 47... Re2 {[%clk 0:00:12.9]} 0-1

[Event "Late-Titled-Tuesday-Blitz-August-29-2023"]
[Site "Chess.com"]
[Date "2023.08.29"]
[Round "3"]
[White "vladislavkovalev"]
[Black "DeTimmerman"]
[Result "1-0"]
[WhiteElo "2915"]
[BlackElo "2690"]
[TimeControl "180+1"]
[EndTime "14:28:24 PDT"]
[Termination "vladislavkovalev won by resignation"]

1. e4 {[%clk 0:03:00.9]} 1... e5 {[%clk 0:02:59.7]} 2. Nf3 {[%clk 0:02:59.4]}
2... Nc6 {[%clk 0:02:59.7]} 3. Bb5 {[%clk 0:02:58.6]} 3... Nge7 {[%clk
0:02:58.3]} 4. Nc3 {[%clk 0:02:54.2]} 4... a6 {[%clk 0:02:56.1]} 5. Ba4 {[%clk
0:02:48.5]} 5... Ng6 {[%clk 0:02:54.4]} 6. h4 {[%clk 0:02:48.5]} 6... h5 {[%clk
0:02:20.7]} 7. Bb3 {[%clk 0:02:28.7]} 7... Be7 {[%clk 0:01:56.8]} 8. d3 {[%clk
0:02:18.5]} 8... d6 {[%clk 0:01:47]} 9. Ng5 {[%clk 0:02:17.2]} 9... Bxg5 {[%clk
0:01:42.5]} 10. hxg5 {[%clk 0:02:17.4]} 10... h4 {[%clk 0:01:36.6]} 11. a3
{[%clk 0:02:15.2]} 11... Nd4 {[%clk 0:01:28.2]} 12. Ba2 {[%clk 0:02:15.3]} 12...
Be6 {[%clk 0:01:28.6]} 13. Bxe6 {[%clk 0:02:07.8]} 13... Nxe6 {[%clk 0:01:29.5]}
14. Qg4 {[%clk 0:02:07.7]} 14... Nd4 {[%clk 0:01:19.3]} 15. Kd1 {[%clk
0:02:05.9]} 15... Qd7 {[%clk 0:01:19.5]} 16. Qxd7+ {[%clk 0:02:05.8]} 16... Kxd7
{[%clk 0:01:20.4]} 17. Be3 {[%clk 0:02:06]} 17... Ne6 {[%clk 0:01:19.8]} 18. Kd2
{[%clk 0:02:05.4]} 18... Ngf4 {[%clk 0:01:04.2]} 19. g3 {[%clk 0:02:00.5]} 19...
hxg3 {[%clk 0:01:05.1]} 20. fxg3 {[%clk 0:02:01.2]} 20... Ng6 {[%clk 0:01:05.6]}
21. Nd5 {[%clk 0:01:45.6]} 21... Rxh1 {[%clk 0:01:01.9]} 22. Rxh1 {[%clk
0:01:46.5]} 22... Rh8 {[%clk 0:01:02.4]} 23. Rxh8 {[%clk 0:01:43.7]} 23... Nxh8
{[%clk 0:01:03.3]} 24. b4 {[%clk 0:01:27.3]} 24... Ng6 {[%clk 0:01:02.1]} 25. c4
{[%clk 0:01:27.3]} 25... Ne7 {[%clk 0:01:02.4]} 26. a4 {[%clk 0:01:13.1]} 26...
Nxd5 {[%clk 0:00:54.8]} 27. exd5 {[%clk 0:00:55.5]} 27... Nf8 {[%clk 0:00:53.2]}
28. Ke2 {[%clk 0:00:50.1]} 28... Ng6 {[%clk 0:00:52.8]} 29. Kf3 {[%clk
0:00:50.1]} 29... Ne7 {[%clk 0:00:53.3]} 30. Ke4 {[%clk 0:00:45.4]} 30... g6
{[%clk 0:00:53.4]} 31. d4 {[%clk 0:00:35.8]} 31... exd4 {[%clk 0:00:50.1]} 32.
Bxd4 {[%clk 0:00:36.7]} 32... Nf5 {[%clk 0:00:49.7]} 33. Bf2 {[%clk 0:00:37.4]}
33... b6 {[%clk 0:00:38.4]} 34. g4 {[%clk 0:00:33.3]} 34... Ne7 {[%clk
0:00:37.9]} 35. c5 {[%clk 0:00:32.7]} 35... bxc5 {[%clk 0:00:34.1]} 36. bxc5
{[%clk 0:00:33.6]} 36... c6 {[%clk 0:00:20.5]} 37. cxd6 {[%clk 0:00:15]} 37...
Nxd5 {[%clk 0:00:19.9]} 38. Ke5 {[%clk 0:00:14.6]} 38... a5 {[%clk 0:00:11.2]}
39. Be1 {[%clk 0:00:13.8]} 39... Nb6 {[%clk 0:00:11]} 40. Kf6 {[%clk 0:00:12.6]}
40... Kxd6 {[%clk 0:00:10.4]} 41. Kxf7 {[%clk 0:00:13.1]} 41... Nxa4 {[%clk
0:00:10.2]} 42. Kxg6 {[%clk 0:00:13.8]} 42... Nc5 {[%clk 0:00:10.2]} 43. Kf7
{[%clk 0:00:10.1]} 43... Ne6 {[%clk 0:00:08.8]} 44. g6 {[%clk 0:00:10.7]} 44...
a4 {[%clk 0:00:08.9]} 45. g7 {[%clk 0:00:11.2]} 45... Nxg7 {[%clk 0:00:09.2]}
46. Kxg7 {[%clk 0:00:12.1]} 46... c5 {[%clk 0:00:08.6]} 47. g5 {[%clk
0:00:12.6]} 47... a3 {[%clk 0:00:08.9]} 48. g6 {[%clk 0:00:13.1]} 48... a2
{[%clk 0:00:09.3]} 49. Bc3 {[%clk 0:00:13.5]} 49... Kd5 {[%clk 0:00:09.1]} 50.
Kh6 {[%clk 0:00:11.8]} 50... Kc4 {[%clk 0:00:10]} 51. Ba1 {[%clk 0:00:11.6]}
51... Kb3 {[%clk 0:00:10.4]} 52. g7 {[%clk 0:00:12]} 1-0

[Event "Late-Titled-Tuesday-Blitz-August-29-2023"]
[Site "Chess.com"]
[Date "2023.08.29"]
[Round "3"]
[White "scandalgod"]
[Black "Berardino"]
[Result "0-1"]
[WhiteElo "2465"]
[BlackElo "2679"]
[TimeControl "180+1"]
[EndTime "14:28:24 PDT"]
[Termination "Berardino won by resignation"]

1. d4 {[%clk 0:03:00.9]} 1... Nf6 {[%clk 0:02:58.4]} 2. c4 {[%clk 0:03:01.1]}
2... e6 {[%clk 0:02:52.6]} 3. g3 {[%clk 0:03:01.3]} 3... c5 {[%clk 0:02:51.2]}
4. d5 {[%clk 0:03:01.2]} 4... exd5 {[%clk 0:02:51.6]} 5. cxd5 {[%clk 0:03:02.1]}
5... d6 {[%clk 0:02:52.3]} 6. Nc3 {[%clk 0:03:02.7]} 6... g6 {[%clk 0:02:52.8]}
7. Nf3 {[%clk 0:03:03.2]} 7... Bg7 {[%clk 0:02:53.4]} 8. Bg2 {[%clk 0:03:03.8]}
8... O-O {[%clk 0:02:53.6]} 9. O-O {[%clk 0:03:04.4]} 9... Na6 {[%clk
0:02:53.7]} 10. Bf4 {[%clk 0:03:03.9]} 10... Re8 {[%clk 0:02:45.7]} 11. Re1
{[%clk 0:03:01.6]} 11... Nc7 {[%clk 0:02:30.3]} 12. a4 {[%clk 0:02:56.7]} 12...
b6 {[%clk 0:02:14.8]} 13. e4 {[%clk 0:02:54.7]} 13... Bg4 {[%clk 0:02:13.9]} 14.
h3 {[%clk 0:02:33.6]} 14... Bxf3 {[%clk 0:02:13.7]} 15. Bxf3 {[%clk 0:02:33]}
15... Qd7 {[%clk 0:01:13.2]} 16. Kg2 {[%clk 0:02:28.7]} 16... Rad8 {[%clk
0:01:12.6]} 17. Qd2 {[%clk 0:02:21.3]} 17... Qe7 {[%clk 0:00:58.9]} 18. e5
{[%clk 0:02:01.1]} 18... dxe5 {[%clk 0:00:57.2]} 19. Rxe5 {[%clk 0:01:59.5]}
19... Qf8 {[%clk 0:00:51]} 20. Rxe8 {[%clk 0:01:52.4]} 20... Ncxe8 {[%clk
0:00:47.6]} 21. a5 {[%clk 0:01:50.5]} 21... Nd6 {[%clk 0:00:44.3]} 22. axb6
{[%clk 0:01:49.6]} 22... axb6 {[%clk 0:00:44.9]} 23. Ra7 {[%clk 0:01:43.1]}
23... b5 {[%clk 0:00:35]} 24. Bxd6 {[%clk 0:01:30.4]} 24... Qxd6 {[%clk
0:00:32.2]} 25. Nxb5 {[%clk 0:01:26.9]} 25... Qb6 {[%clk 0:00:31.9]} 26. Qa5
{[%clk 0:01:18.8]} 26... Qxa5 {[%clk 0:00:26.3]} 27. Rxa5 {[%clk 0:01:19.4]}
27... Nxd5 {[%clk 0:00:24.6]} 28. Bxd5 {[%clk 0:01:00.1]} 28... Rxd5 {[%clk
0:00:25.5]} 29. Ra8+ {[%clk 0:00:55]} 29... Bf8 {[%clk 0:00:25.6]} 30. Nc3
{[%clk 0:00:51.5]} 30... Rd2 {[%clk 0:00:20.6]} 31. Ne4 {[%clk 0:00:43.6]} 31...
Rc2 {[%clk 0:00:15.8]} 32. Nf6+ {[%clk 0:00:23]} 32... Kg7 {[%clk 0:00:16.3]}
33. Ne8+ {[%clk 0:00:22.8]} 33... Kh6 {[%clk 0:00:15.1]} 34. Rb8 {[%clk
0:00:22]} 34... c4 {[%clk 0:00:11.4]} 35. Nf6 {[%clk 0:00:19.8]} 35... Bc5
{[%clk 0:00:10.7]} 36. Ne4 {[%clk 0:00:18.9]} 36... Bd4 {[%clk 0:00:10.8]} 37.
Rc8 {[%clk 0:00:14.6]} 37... Bxb2 {[%clk 0:00:06.9]} 38. g4 {[%clk 0:00:12.9]}
38... Bd4 {[%clk 0:00:05.8]} 39. Kg3 {[%clk 0:00:11.8]} 39... f5 {[%clk
0:00:04.8]} 40. gxf5 {[%clk 0:00:11.5]} 40... gxf5 {[%clk 0:00:05.3]} 41. Nd6
{[%clk 0:00:11.8]} 41... Be5+ {[%clk 0:00:04.7]} 42. f4 {[%clk 0:00:11]} 42...
Bxd6 {[%clk 0:00:05.1]} 43. Rc6 {[%clk 0:00:11.2]} 43... Rd2 {[%clk 0:00:05.3]}
44. Rxc4 {[%clk 0:00:11.5]} 44... Kh5 {[%clk 0:00:05.7]} 45. Ra4 {[%clk
0:00:09.7]} 45... Rd3+ {[%clk 0:00:05.5]} 46. Kf2 {[%clk 0:00:09.8]} 46... Kh4
{[%clk 0:00:05.4]} 47. Ra6 {[%clk 0:00:09.3]} 47... Kxh3 {[%clk 0:00:04.5]} 0-1

[Event "Late-Titled-Tuesday-Blitz-August-29-2023"]
[Site "Chess.com"]
[Date "2023.08.29"]
[Round "3"]
[White "lefonghua"]
[Black "stasOR4ik"]
[Result "1/2-1/2"]
[WhiteElo "2642"]
[BlackElo "2452"]
[TimeControl "180+1"]
[EndTime "14:28:26 PDT"]
[Termination "Game drawn by agreement"]

1. d4 {[%clk 0:03:00.9]} 1... d5 {[%clk 0:03:00]} 2. c4 {[%clk 0:03:01.2]} 2...
c6 {[%clk 0:03:00]} 3. Nf3 {[%clk 0:03:01.3]} 3... Nf6 {[%clk 0:03:00.2]} 4. Nc3
{[%clk 0:03:01.7]} 4... dxc4 {[%clk 0:03:00.6]} 5. a4 {[%clk 0:03:01.6]} 5...
Bf5 {[%clk 0:02:58.9]} 6. Ne5 {[%clk 0:03:01.8]} 6... e6 {[%clk 0:02:49.6]} 7.
f3 {[%clk 0:03:01]} 7... Nbd7 {[%clk 0:02:46.3]} 8. Nxc4 {[%clk 0:02:57]} 8...
Bg6 {[%clk 0:02:42.6]} 9. e4 {[%clk 0:02:55.3]} 9... Bb4 {[%clk 0:02:37.9]} 10.
Be2 {[%clk 0:02:49.5]} 10... O-O {[%clk 0:02:32.5]} 11. O-O {[%clk 0:02:48.9]}
11... Qc7 {[%clk 0:02:27]} 12. Be3 {[%clk 0:02:45.6]} 12... e5 {[%clk
0:02:24.8]} 13. Nxe5 {[%clk 0:02:22.3]} 13... Nxe5 {[%clk 0:02:24.1]} 14. dxe5
{[%clk 0:02:23.2]} 14... Qxe5 {[%clk 0:02:24.4]} 15. f4 {[%clk 0:02:19.7]} 15...
Qe7 {[%clk 0:02:24.4]} 16. f5 {[%clk 0:02:17.2]} 16... Nxe4 {[%clk 0:02:24.8]}
17. Nxe4 {[%clk 0:01:59.9]} 17... Qxe4 {[%clk 0:02:23.3]} 18. Qd3 {[%clk
0:01:44.2]} 18... Rae8 {[%clk 0:01:58.2]} 19. fxg6 {[%clk 0:01:31.4]} 19...
Qxe3+ {[%clk 0:01:40]} 20. Qxe3 {[%clk 0:01:28.8]} 20... Rxe3 {[%clk 0:01:40.9]}
21. gxf7+ {[%clk 0:01:27.9]} 21... Kh8 {[%clk 0:01:39]} 22. Bc4 {[%clk
0:01:24.6]} 22... g6 {[%clk 0:01:29.2]} 23. Rad1 {[%clk 0:01:17.1]} 23... Bc5
{[%clk 0:01:25.7]} 24. Kh1 {[%clk 0:01:15.5]} 24... Re4 {[%clk 0:01:22.8]} 25.
b3 {[%clk 0:01:06.6]} 25... a6 {[%clk 0:01:21.8]} 26. Rd7 {[%clk 0:00:57.5]}
26... b5 {[%clk 0:01:20.7]} 27. axb5 {[%clk 0:00:57.9]} 27... axb5 {[%clk
0:01:21.2]} 28. Bd3 {[%clk 0:00:57.4]} 28... Re7 {[%clk 0:01:15.9]} 29. Rxe7
{[%clk 0:00:53.5]} 29... Bxe7 {[%clk 0:01:16.8]} 30. Be4 {[%clk 0:00:50.6]}
30... Kg7 {[%clk 0:01:16.7]} 31. Bxc6 {[%clk 0:00:50.5]} 31... Rxf7 {[%clk
0:01:15.1]} 32. Rxf7+ {[%clk 0:00:41.1]} 32... Kxf7 {[%clk 0:01:16]} 33. Bxb5
{[%clk 0:00:41.6]} 33... Kf6 {[%clk 0:01:10.2]} 34. Kg1 {[%clk 0:00:40]} 34...
Bc5+ {[%clk 0:01:08]} 35. Kf1 {[%clk 0:00:40.4]} 35... Ke5 {[%clk 0:01:08.4]}
36. Ke2 {[%clk 0:00:40.6]} 36... g5 {[%clk 0:00:43.1]} 37. h3 {[%clk 0:00:36.2]}
37... h5 {[%clk 0:00:36.9]} 38. Be8 {[%clk 0:00:36]} 38... h4 {[%clk 0:00:36.2]}
39. Kd3 {[%clk 0:00:36.6]} 39... Ba3 {[%clk 0:00:31.1]} 40. Kc4 {[%clk
0:00:35.4]} 40... Kd6 {[%clk 0:00:31.4]} 41. Kb5 {[%clk 0:00:34.8]} 41... Kc7
{[%clk 0:00:31.6]} 42. Ka5 {[%clk 0:00:31.2]} 42... Kb8 {[%clk 0:00:30.9]} 43.
b4 {[%clk 0:00:29.2]} 43... Bc1 {[%clk 0:00:30.7]} 44. Kb6 {[%clk 0:00:24.9]}
44... Bd2 {[%clk 0:00:28.7]} 45. b5 {[%clk 0:00:25]} 45... Bc1 {[%clk 0:00:29]}
46. Kc6 {[%clk 0:00:25]} 46... Bd2 {[%clk 0:00:29.1]} 47. Kd5 {[%clk 0:00:24.8]}
47... Bc1 {[%clk 0:00:29.4]} 48. Ke4 {[%clk 0:00:25.2]} 48... Bd2 {[%clk
0:00:29.8]} 49. Kf5 {[%clk 0:00:25.7]} 49... Bc1 {[%clk 0:00:29]} 50. Bc6 {[%clk
0:00:26.2]} 50... Bd2 {[%clk 0:00:29]} 51. Kg4 {[%clk 0:00:26.7]} 51... Bc1
{[%clk 0:00:29.2]} 52. Bd5 {[%clk 0:00:27.2]} 52... Bd2 {[%clk 0:00:29.4]} 53.
g3 {[%clk 0:00:27.6]} 53... hxg3 {[%clk 0:00:29.3]} 54. Kxg3 {[%clk 0:00:28.5]}
54... Bc1 {[%clk 0:00:29.6]} 55. Kg4 {[%clk 0:00:29.1]} 55... Bd2 {[%clk
0:00:29.6]} 56. Be4 {[%clk 0:00:30]} 56... Bc1 {[%clk 0:00:29.9]} 57. Bf3 {[%clk
0:00:30.9]} 57... Bd2 {[%clk 0:00:30.2]} 58. Be2 {[%clk 0:00:31.8]} 58... Bc1
{[%clk 0:00:30.7]} 59. Bd3 {[%clk 0:00:32.7]} 59... Bd2 {[%clk 0:00:31]} 60. Bc4
{[%clk 0:00:33.6]} 60... Bc1 {[%clk 0:00:31.5]} 61. Kf3 {[%clk 0:00:34.5]} 61...
Bd2 {[%clk 0:00:31.9]} 62. Ke2 {[%clk 0:00:35.4]} 62... Bf4 {[%clk 0:00:32.3]}
63. Bd5 {[%clk 0:00:35.3]} 63... Kc7 {[%clk 0:00:31.1]} 64. Bc6 {[%clk
0:00:35.7]} 64... Kb6 {[%clk 0:00:31.6]} 65. Bd7 {[%clk 0:00:35.9]} 65... Bc1
{[%clk 0:00:31.2]} 66. Be8 {[%clk 0:00:36.3]} 66... Bf4 {[%clk 0:00:31.1]} 67.
Bc6 {[%clk 0:00:35.7]} 67... Bc1 {[%clk 0:00:30.6]} 68. Kf3 {[%clk 0:00:35.7]}
68... Kc7 {[%clk 0:00:30.3]} 69. Kg4 {[%clk 0:00:35.6]} 69... Kb6 {[%clk
0:00:30.4]} 70. Bd7 {[%clk 0:00:35]} 70... Kc7 {[%clk 0:00:30.7]} 71. Be8 {[%clk
0:00:35.9]} 71... Kb6 {[%clk 0:00:31.1]} 72. h4 {[%clk 0:00:36.4]} 72... gxh4
{[%clk 0:00:31]} 73. Kxh4 {[%clk 0:00:37]} 73... Bb2 {[%clk 0:00:30.2]} 74. Kg4
{[%clk 0:00:37.2]} 74... Bg7 {[%clk 0:00:30.2]} 75. Bc6 {[%clk 0:00:37.9]} 75...
Bh8 {[%clk 0:00:30.5]} 76. Kf5 {[%clk 0:00:38.2]} 1/2-1/2

[Event "Late-Titled-Tuesday-Blitz-August-29-2023"]
[Site "Chess.com"]
[Date "2023.08.29"]
[Round "3"]
[White "jinxy2009"]
[Black "santosalberto1987"]
[Result "0-1"]
[WhiteElo "2347"]
[BlackElo "2556"]
[TimeControl "180+1"]
[EndTime "14:28:28 PDT"]
[Termination "santosalberto1987 won by resignation"]

1. e4 {[%clk 0:03:00.9]} 1... e6 {[%clk 0:02:59.6]} 2. d4 {[%clk 0:02:57.2]}
2... d5 {[%clk 0:02:59]} 3. Nc3 {[%clk 0:02:55.9]} 3... Nf6 {[%clk 0:02:50.8]}
4. e5 {[%clk 0:02:55.8]} 4... Nfd7 {[%clk 0:02:50.8]} 5. f4 {[%clk 0:02:56.5]}
5... c5 {[%clk 0:02:50]} 6. Nf3 {[%clk 0:02:57.2]} 6... Nc6 {[%clk 0:02:50.6]}
7. Be3 {[%clk 0:02:56.9]} 7... Qb6 {[%clk 0:02:50.6]} 8. Na4 {[%clk 0:02:50.3]}
8... Qa5+ {[%clk 0:02:43.5]} 9. c3 {[%clk 0:02:43.9]} 9... b6 {[%clk 0:02:43.5]}
10. a3 {[%clk 0:02:22.2]} 10... c4 {[%clk 0:02:43.1]} 11. b4 {[%clk 0:02:13.9]}
11... cxb3 {[%clk 0:02:43.1]} 12. Qxb3 {[%clk 0:02:14.1]} 12... Ba6 {[%clk
0:02:43.5]} 13. Bxa6 {[%clk 0:02:10.9]} 13... Qxa6 {[%clk 0:02:43.4]} 14. Nb2
{[%clk 0:02:10.4]} 14... Rc8 {[%clk 0:02:42.3]} 15. Kf2 {[%clk 0:01:58.9]} 15...
Be7 {[%clk 0:02:41.6]} 16. a4 {[%clk 0:01:49.9]} 16... Na5 {[%clk 0:02:41.2]}
17. Qc2 {[%clk 0:01:41.1]} 17... Nc4 {[%clk 0:02:39]} 18. Nxc4 {[%clk
0:01:38.6]} 18... Rxc4 {[%clk 0:02:37]} 19. Nd2 {[%clk 0:01:35.5]} 19... Rc6
{[%clk 0:02:35.1]} 20. Rhf1 {[%clk 0:01:23.7]} 20... O-O {[%clk 0:02:33.8]} 21.
f5 {[%clk 0:01:14.7]} 21... Rfc8 {[%clk 0:02:31.8]} 22. Rac1 {[%clk 0:01:09.4]}
22... f6 {[%clk 0:01:56.1]} 23. fxe6 {[%clk 0:01:01]} 23... Rxe6 {[%clk
0:01:57]} 24. Qf5 {[%clk 0:01:00.7]} 24... Nf8 {[%clk 0:01:57]} 25. Kg1 {[%clk
0:00:58.9]} 25... Kh8 {[%clk 0:01:37]} 26. Nf3 {[%clk 0:00:22.4]} 26... Qxa4
{[%clk 0:01:31.1]} 27. Nh4 {[%clk 0:00:20.2]} 27... fxe5 {[%clk 0:01:23]} 28.
Nf3 {[%clk 0:00:16.7]} 28... e4 {[%clk 0:01:12.8]} 29. Ng5 {[%clk 0:00:16.5]}
29... Rf6 {[%clk 0:00:26.5]} 30. Nf7+ {[%clk 0:00:15.9]} 30... Kg8 {[%clk
0:00:22.3]} 31. Qxd5 {[%clk 0:00:16]} 31... Qc4 {[%clk 0:00:16.6]} 32. Nh6+
{[%clk 0:00:11]} 32... Kh8 {[%clk 0:00:16.9]} 33. Qxc4 {[%clk 0:00:11.9]} 33...
Rxc4 {[%clk 0:00:16.7]} 34. Rxf6 {[%clk 0:00:12.8]} 34... Bxf6 {[%clk
0:00:16.7]} 35. Ng4 {[%clk 0:00:13.7]} 35... Nd7 {[%clk 0:00:15.8]} 36. Nxf6
{[%clk 0:00:13.8]} 36... Nxf6 {[%clk 0:00:16.5]} 37. Kf2 {[%clk 0:00:14.7]}
37... Nd5 {[%clk 0:00:16.5]} 38. Ke2 {[%clk 0:00:15.6]} 38... Rxc3 {[%clk
0:00:16.4]} 39. Rf1 {[%clk 0:00:11.9]} 39... Rxe3+ {[%clk 0:00:16]} 40. Kd2
{[%clk 0:00:12.8]} 40... h6 {[%clk 0:00:15.9]} 41. Rf5 {[%clk 0:00:13.4]} 41...
Rd3+ {[%clk 0:00:15.4]} 42. Ke2 {[%clk 0:00:13.5]} 42... Nf6 {[%clk 0:00:15.7]}
43. Re5 {[%clk 0:00:12.6]} 43... Rxd4 {[%clk 0:00:15.9]} 44. Re7 {[%clk
0:00:12.4]} 44... a5 {[%clk 0:00:15.5]} 45. Ra7 {[%clk 0:00:13.3]} 45... Rb4
{[%clk 0:00:15.2]} 46. Ra6 {[%clk 0:00:14.2]} 46... a4 {[%clk 0:00:15.4]} 47.
Kd2 {[%clk 0:00:14.9]} 47... b5 {[%clk 0:00:15.6]} 48. Kc2 {[%clk 0:00:15.8]}
48... Rb3 {[%clk 0:00:16.1]} 49. Ra5 {[%clk 0:00:16.5]} 49... e3 {[%clk
0:00:16.3]} 50. Kd1 {[%clk 0:00:16]} 50... a3 {[%clk 0:00:16.1]} 51. Ke2 {[%clk
0:00:16.9]} 51... b4 {[%clk 0:00:16.5]} 52. Ra8+ {[%clk 0:00:16.5]} 52... Kh7
{[%clk 0:00:16.4]} 53. Ra4 {[%clk 0:00:17.4]} 53... Rb2+ {[%clk 0:00:16.6]} 54.
Kf3 {[%clk 0:00:18.3]} 54... a2 {[%clk 0:00:17.1]} 55. h3 {[%clk 0:00:17.7]}
55... b3 {[%clk 0:00:17.3]} 56. Kxe3 {[%clk 0:00:17.2]} 56... Rb1 {[%clk
0:00:16.8]} 57. Kd3 {[%clk 0:00:18.1]} 57... a1=Q {[%clk 0:00:17]} 58. Rxa1
{[%clk 0:00:19]} 58... Rxa1 {[%clk 0:00:17.6]} 59. Kc4 {[%clk 0:00:19.9]} 59...
b2 {[%clk 0:00:17.6]} 60. Kc3 {[%clk 0:00:20.8]} 60... b1=Q {[%clk 0:00:17.8]}
0-1